fUSD/lending_fUSD_20251220
["ID","MTS","AMOUNT","RATE_DAILY","PERIOD"]
[399296428,1766253042008,-150.0,0.00015488,2]
[399296429,1766253042018,-150.0,0.00015488,2]
[399296430,1766253042028,-150.0,0.00015492,2]
[399296431,1766253042037,-166.66,0.00015494,2]
[399296432,1766253042047,-150.0,0.000155,2]
[399296433,1766253042055,-150.0,0.0001553,2]
[399296434,1766253042065,-150.0,0.0001553,2]
[399296435,1766253042074,-150.0,0.0001553,2]
[399296436,1766253042083,-150.0,0.00015537,2]
[399296437,1766253042092,-150.0,0.00015559,2]
[399296438,1766253042102,-150.0,0.00015587,2]
[399296439,1766253042111,-150.0,0.00015587,2]
[399296440,1766253042121,-150.0,0.00015606,2]
[399296441,1766253042131,-11735.40420204,0.00015607,2]
[399296442,1766253042140,-150.0,0.00015611,2]
[399296443,1766253042149,-150.0,0.00015611,2]
[399296444,1766253042158,-718.11,0.00015616,2]
[399296445,1766253042167,-150.0,0.00015627,2]
[399296446,1766253042177,-150.0,0.00015627,2]
[399296447,1766253042186,-150.0,0.00015627,2]
[399296448,1766253042195,-150.0,0.00015637,2]
[399296449,1766253042204,-237.3687377,0.00015641,2]
[399296450,1766253042214,-150.0,0.00015652,2]
[399296451,1766253042223,-150.0,0.00015675,2]
[399296452,1766253042234,-6152.8,0.00015675,2]
[399296453,1766253042243,-150.0,0.00015687,2]
[399296454,1766253042252,-150.0,0.00015687,2]
[399296455,1766253042261,-150.0,0.00015692,2]
[399296456,1766253042270,-150.0,0.00015692,2]
[399296457,1766253042279,-150.0,0.00015695,2]
[399296458,1766253042289,-150.0,0.00015712,2]
[399296459,1766253042298,-150.0,0.00015712,2]
[399296460,1766253042307,-150.0,0.00015737,2]
[399296461,1766253042316,-150.0,0.00015763,2]
[399296462,1766253042325,-150.0,0.00015773,2]
[399296463,1766253042334,-150.0,0.00015773,2]
[399296464,1766253042343,-150.0,0.00015773,2]
[399296465,1766253042353,-150.0,0.00015787,2]
[399296466,1766253042362,-150.0,0.00015787,2]
[399296467,1766253042371,-166.66,0.00015801,2]
[399296468,1766253042381,-150.0,0.00015818,2]
[399296469,1766253042390,-150.0,0.00015831,2]
[399296470,1766253042399,-150.0,0.00015837,2]
[399296471,1766253042408,-153.20553774,0.00015847,2]
[399296472,1766253042418,-150.0,0.00015854,2]
[399296473,1766253042427,-150.0,0.00015854,2]
[399296474,1766253042436,-150.0,0.00015854,2]
[399296475,1766253042446,-150.0,0.00015887,2]
[399296476,1766253042455,-150.0,0.00015887,2]
[399296477,1766253042464,-150.0,0.00015894,2]
[399296478,1766253042473,-150.0,0.00015899,2]
[399296479,1766253042483,-200.0,0.0001592,2]
[399296480,1766253042492,-150.0,0.00015925,2]
[399296481,1766253042502,-150.0,0.00015935,2]
[399296482,1766253042511,-150.0,0.00015935,2]
[399296483,1766253042520,-150.0,0.00015937,2]
[399296484,1766253042529,-150.0,0.00015967,2]
[399296485,1766253042539,-150.0,0.00015967,2]
[399296486,1766253042548,-150.0,0.00015967,2]
[399296487,1766253042557,-150.0,0.00015987,2]
[399296488,1766253042567,-150.0,0.00015987,2]
[399296489,1766253042576,-150.0,0.00016016,2]
[399296490,1766253042585,-150.0,0.00016016,2]
[399296491,1766253042595,-150.0,0.00016016,2]
[399296492,1766253042604,-150.0,0.00016031,2]
[399296493,1766253042614,-150.0,0.00016035,2]
[399296494,1766253042624,-150.0,0.00016037,2]
[399296495,1766253042633,-11735.40420204,0.00016038,2]
[399296496,1766253042642,-150.0,0.00016087,2]
[399296497,1766253042655,-150.0,0.00016087,2]
[399296498,1766253042664,-150.0,0.00016097,2]
[399296499,1766253042673,-150.0,0.00016097,2]
[399296500,1766253042683,-150.0,0.00016103,2]
[399296501,1766253042693,-166.66,0.00016108,2]
[399296502,1766253042703,-150.0,0.00016137,2]
[399296503,1766253042712,-150.0,0.00016137,2]
[399296504,1766253042721,-150.0,0.00016137,2]
[399296505,1766253042730,-150.0,0.00016137,2]
[399296506,1766253042742,-200.0,0.00016149,2]
[399296507,1766253042751,-207.4,0.00016149,2]
[399296508,1766253042761,-157.57578229,0.00016149,2]
[399296509,1766253042770,-300.0,0.00016149,2]
[399296510,1766253042780,-150.0,0.00016171,2]
[399296511,1766253042791,-150.0,0.00016177,2]
[399296512,1766253042800,-150.0,0.00016177,2]
[399296513,1766253042809,-150.0,0.00016187,2]
[399296514,1766253042820,-150.0,0.00016187,2]
[399296515,1766253042829,-150.0,0.00016237,2]
[399296516,1766253042839,-150.0,0.00016239,2]
[399296517,1766253042848,-150.0,0.00016243,2]
[399296518,1766253042858,-150.0,0.00016258,2]
[399296519,1766253042867,-150.0,0.00016258,2]
[399296520,1766253042877,-150.0,0.00016258,2]
[399296521,1766253042885,-237.3687377,0.0001627,2]
[399296522,1766253042895,-150.0,0.00016287,2]
[399296523,1766253042904,-150.0,0.00016287,2]
[399296524,1766253042913,-150.0,0.00016307,2]
[399296525,1766253042922,-150.0,0.00016307,2]
[399296526,1766253042932,-150.0,0.00016307,2]
[399296527,1766253042941,-1331.562,0.00016328,2]
[399296528,1766253042950,-3455.0,0.00016328,2]
[399296529,1766253042959,-1647.057,0.00016328,2]
[399296530,1766253042968,-615.844,0.00016328,2]
[399296531,1766253042977,-517.522,0.00016328,2]
[399296532,1766253042987,-2428.0,0.00016328,2]
[399296533,1766253042996,-564.0,0.00016328,2]
[399296534,1766253043005,-4845.428,0.00016328,2]
[399296535,1766253043014,-150.0,0.00016337,2]
[399296536,1766253043023,-150.0,0.00016339,2]
[399296537,1766253043032,-150.0,0.00016339,2]
[399296538,1766253043041,-150.0,0.00016349,2]
[399296539,1766253043051,-150.0,0.00016375,2]
[399296540,1766253043060,-150.0,0.0001638,2]
[399296541,1766253043070,-150.0,0.00016387,2]
[399296542,1766253043080,-150.0,0.00016387,2]
[399296543,1766253043090,-150.0,0.0001642,2]
[399296544,1766253043101,-150.0,0.0001642,2]
[399296545,1766253043110,-150.0,0.0001642,2]
[399296546,1766253043120,-877.94679186,0.00016428,2]
[399296547,1766253043130,-150.0,0.00016437,2]
[399296548,1766253043142,-8709.2,0.00016438,2]
[399296549,1766253043151,-500.0,0.00016438,2]
[399296550,1766253043160,-500.0,0.00016438,2]
[399296551,1766253043170,-500.0,0.00016438,2]
[399296552,1766253043180,-500.0,0.00016438,2]
[399296553,1766253043189,-500.0,0.00016438,2]
[399296554,1766253043198,-627.60424824,0.00016438,2]
[399296555,1766253043208,-500.0,0.00016438,2]
[399296556,1766253043217,-500.0,0.00016438,2]
[399296557,1766253043226,-500.0,0.00016438,2]
[399296558,1766253043236,-500.0,0.00016438,2]
[399296559,1766253043246,-500.0,0.00016438,2]
[399296560,1766253043255,-500.0,0.00016438,2]
[399296561,1766253043266,-500.0,0.00016438,2]
[399296562,1766253043275,-500.0,0.00016438,2]
[399296563,1766253043285,-900.0,0.00016438,2]
[399296564,1766253043295,-235.76832595,0.00016438,2]
[399296565,1766253043306,-150.0,0.00016443,2]
[399296566,1766253043317,-150.0,0.00016455,2]
[399296567,1766253043327,-11735.40420204,0.00016469,2]
[399296568,1766253043336,-150.0,0.00016487,2]
[399296569,1766253043346,-150.0,0.00016487,2]
[399296570,1766253043355,-500.0,0.00016493,2]
[399296571,1766253043367,-150.0,0.00016501,2]
[399296572,1766253043376,-150.0,0.00016501,2]
[399296573,1766253043387,-150.0,0.00016501,2]
[399296574,1766253043397,-150.0,0.00016511,2]
[399296575,1766253043408,-2000.0,0.00016521,2]
[399296576,1766253043419,-2000.0,0.00016521,2]
[399296577,1766253043428,-2000.0,0.00016521,2]
[399296578,1766253043437,-2000.0,0.00016521,2]
[399296579,1766253043447,-150.0,0.00016537,2]
[399296580,1766253043457,-168.0,0.0001655,2]
[399296581,1766253043467,-150.0,0.00016562,2]
[399296582,1766253043477,-150.0,0.00016562,2]
[399296583,1766253043487,-150.0,0.00016579,2]
[399296584,1766253043497,-150.0,0.00016582,2]
[399296585,1766253043507,-150.0,0.00016582,2]
[399296586,1766253043516,-467.58230881,0.00016582,2]
[399296587,1766253043525,-1074.5317107,0.00016582,2]
[399296588,1766253043534,-150.0,0.00016587,2]
[399296589,1766253043545,-150.0,0.00016587,2]
[399296590,1766253043554,-150.0,0.00016622,2]
[399296591,1766253043563,-150.0,0.00016637,2]
[399296592,1766253043573,-150.0,0.00016647,2]
[399296593,1766253043582,-150.0,0.00016647,2]
[399296594,1766253043591,-150.0,0.00016647,2]
[399296595,1766253043600,-150.0,0.00016663,2]
[399296596,1766253043609,-150.0,0.00016663,2]
[399296597,1766253043619,-150.0,0.00016668,2]
[399296598,1766253043627,-150.0,0.00016687,2]
[399296599,1766253043637,-150.0,0.00016687,2]
[399296600,1766253043646,-4000.0,0.00016712,2]
[399296601,1766253043654,-167.75,0.00016712,2]
[399296602,1766253043663,-150.0,0.00016715,2]
[399296603,1766253043672,-150.0,0.00016737,2]
[399296604,1766253043681,-150.0,0.00016744,2]
[399296605,1766253043690,-150.0,0.00016744,2]
[399296606,1766253043699,-150.0,0.00016744,2]
[399296607,1766253043708,-150.0,0.00016774,2]
[399296608,1766253043717,-150.0,0.00016782,2]
[399296609,1766253043726,-654.0,0.00016786,2]
[399296610,1766253043735,-150.0,0.00016786,2]
[399296611,1766253043748,-150.0,0.00016786,2]
[399296612,1766253043757,-150.0,0.00016825,2]
[399296613,1766253043766,-150.0,0.00016825,2]
[399296614,1766253043775,-150.0,0.00016836,2]
[399296615,1766253043784,-150.0,0.0001685,2]
[399296616,1766253043794,-294.0,0.00016853,2]
[399296617,1766253043803,-200.0,0.00016864,2]
[399296618,1766253043814,-150.0,0.00016865,2]
[399296619,1766253043823,-150.0,0.0001688,2]
[399296620,1766253043832,-597.0,0.00016885,2]
[399296621,1766253043840,-150.0,0.00016886,2]
[399296622,1766253043849,-150.0,0.00016886,2]
[399296623,1766253043858,-597.0,0.00016892,2]
[399296624,1766253043867,-27591.04624507,0.00016899,2]
[399296625,1766253043875,-237.3687377,0.000169,2]
[399296626,1766253043885,-616.35544401,0.000169,2]
[399296627,1766253043895,-10078.3607,0.000169,2]
[399296628,1766253043904,-10000.0,0.000169,2]
[399296629,1766253043913,-186.21416739,0.000169,2]
[399296630,1766253043922,-3121.18198867,0.000169,2]
[399296631,1766253043931,-343.46387208,0.000169,2]
[399296633,1766253044104,-853.46645514,0.000169,2]
[399296634,1766253044117,-11735.40420204,0.000169,2]
[399296635,1766253044127,-7584.0,0.000169,2]
[399296636,1766253044138,-150.0,0.00016905,2]
[399296637,1766253044148,-150.0,0.00016905,2]
[399296638,1766253044157,-150.0,0.00016918,2]
[399296639,1766253044168,-150.0,0.00016936,2]
[399296640,1766253044178,-654.0,0.00016963,2]
[399296641,1766253044188,-308.61264672,0.00016973,2]
[399296642,1766253044197,-500.0,0.00016973,2]
[399296643,1766253044208,-500.0,0.00016973,2]
[399296644,1766253044217,-162.03877535,0.00016973,2]
[399296645,1766253044228,-198.63978603,0.00016973,2]
[399296646,1766253044239,-160.176,0.00016973,2]
[399296647,1766253044248,-160.176,0.00016973,2]
[399296648,1766253044258,-500.0,0.00016973,2]
[399296649,1766253044267,-395.24069311,0.00016973,2]
[399296650,1766253044277,-159.43095819,0.00016973,2]
[399296651,1766253044286,-500.0,0.00016973,2]
[399296652,1766253044296,-500.0,0.00016973,2]
[399296653,1766253044305,-500.0,0.00016973,2]
[399296654,1766253044315,-217.8076658,0.00016983,2]
[399296655,1766253044324,-500.0,0.00016983,2]
[399296656,1766253044334,-3869.93544157,0.00016986,2]
[399296657,1766253044343,-105662.84,0.00016986,2]
[399296658,1766253044357,-150.00000001,0.00016986,2]
[399296659,1766253044371,-150.00000001,0.00016986,2]
[399296660,1766253044381,-150.0,0.00016986,2]
[399296661,1766253044390,-150.0,0.00016986,2]
[399296662,1766253044400,-150.00000001,0.00016986,2]
[399296663,1766253044410,-150.0,0.00016986,2]
[399296665,1766253044419,-150.0,0.00016986,2]
[399296666,1766253044429,-150.0,0.00016986,2]
[399296667,1766253044439,-150.0,0.00016986,2]
[399296668,1766253044448,-150.0,0.00016986,2]
[399296669,1766253044458,-150.0,0.00016986,2]
[399296670,1766253044467,-1194.29389268,0.0001699,5]
[399296671,1766253044477,-877.94679186,0.0001699,2]
[399296672,1766253044486,-877.94679186,0.0001699,2]
[399296673,1766253044496,-250.0,0.00016991,2]
[399296674,1766253044505,-444008.4799891,0.00016991,2]
[399296675,1766253044514,-10267.6660088,0.00016991,2]
[399296676,1766253044524,-1505.4120087,0.00016991,2]
[399296677,1766253044534,-4333.3549017,0.00016991,2]
[399296678,1766253044543,-20211.2638387,0.00016991,2]
[399296679,1766253044553,-500.0,0.00016998,2]
[399296680,1766253044564,-500.0,0.00016998,2]
[399296681,1766253044581,-500.0,0.00016998,2]
[399296682,1766253044591,-500.0,0.00016998,2]
[399296683,1766253044600,-500.0,0.00016998,2]
[399296684,1766253044609,-500.0,0.00016999,2]
[399296685,1766253044619,-500.0,0.00016999,2]
[399296686,1766253044628,-5277533.69370029,0.00017,2]
[399296687,1766253044767,-94728.64375428,0.00017,2]
[399296688,1766253044778,-1129.1994,0.00017,2]
[399296689,1766253044789,-374.3586876,0.00017,2]
[399296690,1766253044800,-722.97387914,0.00017,2]
[399296691,1766253044811,-865.0,0.00017,2]
[399296692,1766253044823,-1421.76578285,0.00017,2]
[399296693,1766253044834,-9035.5967,0.00017,2]
[399296694,1766253044844,-5367.99930976,0.00017,2]
[399296695,1766253044855,-1267.82664481,0.00017,2]
[399296696,1766253044865,-27249.48216851,0.00017,2]
[399296697,1766253044876,-509.65562623,0.00017,2]
[399296698,1766253044887,-59319.44881057,0.00017,2]
[399296699,1766253044981,-43323.81962418,0.00017,2]
[399296700,1766253044996,-867.26068256,0.00017,2]
[399296701,1766253045009,-2382.64006332,0.00017,2]
[399296732,1766253046438,-886.27465715,0.00017,2]
[399296733,1766253046651,-248614.34659821,0.00017,2]
[399296734,1766253046662,-3474.81960718,0.00017,2]
[399296751,1766253061319,500.0,0.00042919,120]
[399296752,1766253069818,151.0,0.00042919,120]
[399296753,1766253070429,151.0,0.00042919,120]
[399296754,1766253071048,151.0,0.00042919,120]
[399296755,1766253071651,151.0,0.00042919,120]
[399296756,1766253072269,151.0,0.00042919,120]
[399296757,1766253072894,151.0,0.00042919,120]
[399296758,1766253073535,151.0,0.00042919,120]
[399296760,1766253074473,151.0,0.00042919,120]
[399296761,1766253075093,151.0,0.00042919,120]
[399296762,1766253076208,151.0,0.00042919,120]
[399296764,1766253076833,151.0,0.00042919,120]
[399296782,1766253124510,1000.0,0.00042919,120]
[399296783,1766253124605,2000.0,0.00042919,120]
[399296784,1766253124698,5000.0,0.00042919,120]
[399296785,1766253125119,1000.0,0.00042919,120]
[399296786,1766253125218,2000.0,0.00042919,120]
[399296787,1766253127095,414.0,0.00042919,120]
[399296788,1766253127150,5000.0,0.00042919,120]
[399296790,1766253128296,153.69901864,0.00042919,120]
[399296791,1766253130169,250.0,0.00042919,120]
[399296792,1766253130815,250.0,0.00042919,120]
[399296793,1766253131445,500.0,0.00042919,120]
[399296794,1766253131927,250.0,0.00042919,120]
[399296795,1766253132008,5432.0,0.00042919,120]
[399296796,1766253132061,500.0,0.00042919,120]
[399296797,1766253132552,250.0,0.00042919,120]
[399296798,1766253133175,250.0,0.00042919,120]
[399296799,1766253133794,250.0,0.00042919,120]
[399296800,1766253134817,578.20924308,0.00042919,120]
[399296802,1766253136192,200.0,0.00042919,120]
[399296811,1766253186482,500.0,0.00042919,120]
[399296812,1766253186604,250.0,0.00042919,120]
[399296813,1766253189723,1500.0,0.00042919,120]
[399296814,1766253190141,679.47336528,0.00042919,120]
[399296815,1766253192028,5432.0,0.00042919,120]
[399296816,1766253192498,599.60298507,0.00042919,120]
[399296817,1766253193177,5432.0,0.00042919,120]
[399296818,1766253193419,500.0,0.00042919,120]
[399296819,1766253193813,5432.0,0.00042919,120]
[399296820,1766253194115,151.0,0.00042919,120]
[399296821,1766253195210,151.0,0.00042919,120]
[399296822,1766253195856,151.0,0.00042919,120]
[399296823,1766253196401,414.0,0.00042919,120]
[399296824,1766253197040,429.318,0.00042919,120]
[399296825,1766253197663,445.202766,0.00042919,120]
[399296826,1766253198280,461.67526834,0.00042919,120]
[399296827,1766253246517,151.0,0.00042919,120]
[399296828,1766253247295,151.0,0.00042919,120]
[399296829,1766253252133,308.95261069,0.00042919,120]
[399296830,1766253253496,443.42969477,0.00042919,120]
[399296833,1766253362355,500.0,0.00042919,120]
[399296835,1766253426092,200.0,0.00042919,120]
[399296836,1766253426704,207.4,0.00042919,120]
[399296837,1766253427792,207.4,0.00042919,120]
[399296838,1766253434587,620.0,0.00042919,120]
[399296839,1766253435179,642.94,0.00042919,120]
[399296840,1766253635145,209.40437685,0.00042921,120]
[399296841,1766253661338,500.0,0.00042921,120]
[399296846,1766253751773,180.45833764,0.00042921,120]
[399296847,1766253800471,4695.89237542,0.00042921,120]
[399296848,1766253805378,214.887714,0.00042921,50]
[399296876,1766253913996,151.0,0.00042921,50]
[399296877,1766253914284,211.215346,0.00042921,50]
[399296889,1766253960982,500.0,0.00042921,120]
[399296918,1766254231493,-172.31937397,0.00010545,2]
[399296919,1766254231503,-250.0,0.00010545,2]
[399296920,1766254231512,-171.79,0.00010545,2]
[399296921,1766254231522,-195.0,0.00010966,2]
[399296922,1766254231531,-1200.0,0.00011598,2]
[399296923,1766254231540,-300.0,0.00011598,2]
[399296924,1766254231549,-1200.0,0.00011598,2]
[399296925,1766254231559,-300.0,0.00011599,2]
[399296926,1766254231568,-195.0,0.00011599,2]
[399296927,1766254231578,-250.0,0.00011599,2]
[399296928,1766254231588,-300.0,0.00011599,2]
[399296929,1766254231598,-250.0,0.00011599,2]
[399296930,1766254231607,-300.0,0.00011599,2]
[399296931,1766254231617,-195.0,0.00011599,2]
[399296932,1766254231627,-200.0,0.00012253,2]
[399296933,1766254231637,-214.25,0.00012404,2]
[399296934,1766254231649,-1600.0,0.0001254,2]
[399296935,1766254231659,-598.072,0.00012663,2]
[399296936,1766254231668,-575.42623557,0.00012722,2]
[399296937,1766254231678,-168.0,0.00012738,2]
[399296938,1766254231687,-1680.0,0.00012758,2]
[399296939,1766254231697,-151.0,0.00012818,2]
[399296940,1766254231707,-172.31937397,0.00012821,2]
[399296941,1766254231717,-33372.60451649,0.00012821,2]
[399296942,1766254231728,-39977.79766597,0.00012821,2]
[399296943,1766254231739,-80149.16206586,0.00012821,2]
[399296944,1766254231750,-57747.49004988,0.00012821,2]
[399296945,1766254231761,-2223.61727678,0.00012821,2]
[399296946,1766254231772,-1014.70775858,0.00012821,2]
[399296947,1766254231788,-58372.11313689,0.00012821,2]
[399296965,1766254237506,-503.55154287,0.0001282,2]
[399296966,1766254237516,-10130.7660048,0.00012821,2]
[399296967,1766254237528,-3306.37281369,0.00012821,2]
[399296969,1766254237663,-323.86634354,0.00012821,2]
[399296976,1766254239972,-713381.50236752,0.00012821,2]
[399296978,1766254239982,-10078.3607,0.00012822,2]
[399296980,1766254239991,-150.0,0.0001292,2]
[399296981,1766254240000,-27591.04624507,0.00012921,2]
[399296982,1766254240009,-15958.74155217,0.00012981,2]
[399296983,1766254240019,-25753.96639196,0.00013081,2]
[399296984,1766254240028,-214.25,0.00013093,2]
[399296985,1766254240038,-280.09,0.00013181,2]
[399296986,1766254240047,-15958.74155209,0.00013416,2]
[399296987,1766254240056,-25753.9663919,0.00013505,2]
[399296988,1766254240066,-150.0,0.00013511,2]
[399296989,1766254240075,-575.42623557,0.00013684,2]
[399296990,1766254240085,-500.0,0.00013698,2]
[399296991,1766254240095,-500.0,0.00013698,2]
[399296992,1766254240105,-508.77600646,0.00013698,2]
[399296993,1766254240114,-500.0,0.00013698,2]
[399296994,1766254240123,-515.95101446,0.00013698,2]
[399296995,1766254240132,-500.0,0.00013698,2]
[399296996,1766254240141,-500.0,0.00013698,2]
[399296997,1766254240150,-500.0,0.00013698,2]
[399296998,1766254240159,-507.51259236,0.00013698,2]
[399296999,1766254240169,-500.0,0.00013698,2]
[399297000,1766254240178,-500.0,0.00013698,2]
[399297001,1766254240188,-500.0,0.00013698,2]
[399297002,1766254240197,-500.0,0.00013698,2]
[399297003,1766254240206,-500.0,0.00013698,2]
[399297004,1766254240216,-500.0,0.00013698,2]
[399297005,1766254240226,-500.0,0.00013698,2]
[399297006,1766254240235,-500.0,0.00013698,2]
[399297007,1766254240244,-500.0,0.00013698,2]
[399297008,1766254240253,-500.0,0.00013698,2]
[399297009,1766254240263,-500.0,0.00013698,2]
[399297010,1766254240273,-500.0,0.00013698,2]
[399297011,1766254240282,-502.53521633,0.00013698,2]
[399297012,1766254240291,-500.0,0.00013698,2]
[399297013,1766254240301,-500.0,0.00013698,2]
[399297014,1766254240310,-500.0,0.00013698,2]
[399297015,1766254240319,-500.0,0.00013698,2]
[399297016,1766254240328,-500.0,0.00013698,2]
[399297017,1766254240337,-500.0,0.00013698,2]
[399297018,1766254240347,-500.0,0.00013698,2]
[399297019,1766254240356,-500.0,0.00013698,2]
[399297020,1766254240365,-500.0,0.00013698,2]
[399297021,1766254240375,-500.0,0.00013698,2]
[399297022,1766254240383,-500.0,0.00013698,2]
[399297023,1766254240393,-500.0,0.00013698,2]
[399297024,1766254240402,-500.0,0.00013698,2]
[399297025,1766254240411,-509.67980687,0.00013698,2]
[399297026,1766254240420,-500.0,0.00013698,2]
[399297027,1766254240430,-500.0,0.00013698,2]
[399297028,1766254240439,-500.0,0.00013698,2]
[399297029,1766254240448,-500.0,0.00013698,2]
[399297030,1766254240457,-500.0,0.00013698,2]
[399297031,1766254240466,-500.0,0.00013698,2]
[399297032,1766254240475,-500.0,0.00013698,2]
[399297033,1766254240485,-327.18979253,0.00013698,2]
[399297034,1766254240493,-500.0,0.00013698,2]
[399297035,1766254240502,-500.0,0.00013698,2]
[399297036,1766254240511,-500.0,0.00013698,2]
[399297037,1766254240520,-500.0,0.00013698,2]
[399297038,1766254240528,-500.0,0.00013698,2]
[399297039,1766254240537,-515.53085816,0.00013698,2]
[399297040,1766254240547,-500.0,0.00013698,2]
[399297041,1766254240556,-500.0,0.00013698,2]
[399297042,1766254240565,-500.0,0.00013698,2]
[399297043,1766254240574,-500.0,0.00013698,2]
[399297044,1766254240584,-500.0,0.00013698,2]
[399297045,1766254240593,-506.0686599,0.00013698,2]
[399297046,1766254240602,-500.0,0.00013698,2]
[399297047,1766254240610,-500.0,0.00013698,2]
[399297048,1766254240619,-582.27761239,0.00013698,2]
[399297049,1766254240628,-500.0,0.00013698,2]
[399297050,1766254240637,-500.0,0.00013698,2]
[399297051,1766254240646,-500.0,0.00013698,2]
[399297052,1766254240655,-500.0,0.00013698,2]
[399297053,1766254240663,-500.0,0.00013698,2]
[399297054,1766254240672,-500.0,0.00013698,2]
[399297055,1766254240681,-500.0,0.00013698,2]
[399297056,1766254240690,-500.0,0.00013698,2]
[399297057,1766254240699,-365.27868297,0.00013698,2]
[399297058,1766254240708,-500.0,0.00013698,2]
[399297059,1766254240717,-500.0,0.00013698,2]
[399297060,1766254240726,-500.0,0.00013698,2]
[399297061,1766254240734,-500.0,0.00013698,2]
[399297062,1766254240743,-286.12837513,0.00013698,2]
[399297063,1766254240753,-500.0,0.00013698,2]
[399297064,1766254240762,-500.0,0.00013698,2]
[399297065,1766254240771,-500.0,0.00013698,2]
[399297066,1766254240780,-500.0,0.00013698,2]
[399297067,1766254240789,-500.0,0.00013698,2]
[399297068,1766254240798,-500.0,0.00013698,2]
[399297069,1766254240807,-718.08,0.00013698,2]
[399297070,1766254240816,-500.0,0.00013698,2]
[399297071,1766254240824,-500.0,0.00013698,2]
[399297072,1766254240833,-500.0,0.00013698,2]
[399297073,1766254240842,-500.0,0.00013698,2]
[399297074,1766254240851,-500.0,0.00013698,2]
[399297075,1766254240860,-500.0,0.00013698,2]
[399297076,1766254240869,-487.49534907,0.00013698,2]
[399297077,1766254240877,-500.0,0.00013698,2]
[399297078,1766254240888,-500.0,0.00013698,2]
[399297079,1766254240899,-500.0,0.00013698,2]
[399297080,1766254240908,-500.0,0.00013698,2]
[399297081,1766254240917,-500.0,0.00013698,2]
[399297082,1766254240927,-500.0,0.00013698,2]
[399297083,1766254240936,-500.0,0.00013698,2]
[399297084,1766254240945,-500.0,0.00013698,2]
[399297085,1766254240955,-500.0,0.00013698,2]
[399297086,1766254240967,-500.0,0.00013698,2]
[399297087,1766254240976,-500.0,0.00013698,2]
[399297088,1766254240985,-500.0,0.00013698,2]
[399297089,1766254240994,-500.0,0.00013698,2]
[399297090,1766254241003,-500.0,0.00013698,2]
[399297091,1766254241011,-500.0,0.00013698,2]
[399297092,1766254241020,-500.0,0.00013698,2]
[399297093,1766254241029,-661.06,0.00013699,2]
[399297094,1766254241038,-500.0,0.00013699,2]
[399297095,1766254241047,-214.25,0.00013782,2]
[399297096,1766254241056,-1382.99743047,0.00013819,2]
[399297097,1766254241065,-7788.55976854,0.00013829,2]
[399297098,1766254241074,-15958.74155209,0.00013852,2]
[399297099,1766254241083,-500.0,0.00013873,2]
[399297100,1766254241092,-500.0,0.00013873,2]
[399297101,1766254241101,-500.0,0.00013873,2]
[399297102,1766254241109,-500.0,0.00013873,2]
[399297103,1766254241118,-25753.9663919,0.0001393,2]